bitfinex-derivatives/quotes_BTCF0:USTF0_20251214
["timestamp","ask_amount","ask_price","bid_price","bid_amount"]
[1765701864228,0.1091845,90223.0,90222.0,0.48450995]
[1765701864627,0.1091845,90223.0,90222.0,0.43235]
[1765701865730,0.1091845,90223.0,90222.0,0.48428751]
[1765701866032,0.1091845,90223.0,90222.0,0.43235]
[1765701866634,0.1091845,90223.0,90222.0,0.48434409]
[1765701867924,0.1091845,90223.0,90222.0,0.43235]
[1765701872630,0.1091845,90223.0,90222.0,0.07155]
[1765701872838,0.1091845,90223.0,90222.0,0.43235]
[1765701874635,0.1091845,90223.0,90222.0,0.07155]
[1765701874839,0.1091845,90223.0,90222.0,0.43235]
[1765701879646,0.0981018,90223.0,90222.0,0.43235]
[1765701881047,0.0981018,90223.0,90222.0,0.07155]
[1765701881249,0.0981018,90223.0,90222.0,0.43235]
[1765701882447,0.09823315,90223.0,90222.0,0.07155]
[1765701882747,0.09823315,90223.0,90222.0,0.43235]
[1765701883645,0.09823315,90223.0,90222.0,0.07155]
[1765701883847,0.09823315,90223.0,90222.0,0.43235]
[1765701889154,0.06196315,90223.0,90222.0,0.43235]
[1765701890542,0.09755315,90223.0,90222.0,0.43235]
[1765701892848,0.06196315,90223.0,90222.0,0.43235]
[1765701893553,0.06196315,90223.0,90222.0,0.07155]
[1765701893856,0.06196315,90223.0,90222.0,0.43235]
[1765701894956,0.09755315,90223.0,90222.0,0.43235]
[1765701899657,0.09755315,90223.0,90222.0,0.07155]
[1765701899855,0.09755315,90223.0,90222.0,0.43235]
[1765701900053,0.09755315,90223.0,90222.0,0.07155]
[1765701900255,0.09755315,90223.0,90222.0,0.43235]
[1765701902755,0.10863585,90223.0,90222.0,0.43235]
[1765701908359,0.10863585,90223.0,90222.0,0.07155]
[1765701908562,0.10863585,90223.0,90222.0,0.43235]
[1765701912660,0.10863585,90223.0,90222.0,0.07155]
[1765701912863,0.10863585,90223.0,90222.0,0.43235]
[1765701918566,0.10863585,90223.0,90222.0,0.07155]
[1765701918767,0.10863585,90223.0,90222.0,0.43235]
[1765701937494,0.10863585,90223.0,90222.0,0.07155]
[1765701937699,0.10863585,90223.0,90222.0,0.43235]
[1765701943499,0.10863585,90223.0,90222.0,0.07155]
[1765701943698,0.10863585,90223.0,90222.0,0.43235]
[1765701951997,0.12744585,90223.0,90222.0,0.43235]
[1765701954407,0.12744585,90223.0,90222.0,0.07155]
[1765701978720,0.12744585,90223.0,90222.0,0.001]
[1765701979124,0.12744585,90223.0,90222.0,0.03679]
[1765701979523,0.12744585,90223.0,90222.0,0.07349]
[1765701981628,0.12744585,90223.0,90222.0,0.001]
[1765701990231,0.48824585,90223.0,90222.0,0.001]
[1765701994034,0.48724585,90223.0,90222.0,0.003]
[1765701995039,0.48424585,90223.0,90222.0,0.002]
[1765701995227,0.48424585,90223.0,90222.0,0.004]
[1765702011863,0.54401059,90223.0,90222.0,0.00379606]
[1765702012059,0.48424585,90223.0,90222.0,0.00379606]
[1765702013865,1.17596585,90223.0,90222.0,0.00379606]
[1765702014371,1.17596585,90223.0,90218.0,0.00016619]
[1765702014372,0.0811432,90219.0,90218.0,0.00016619]
[1765702014572,0.10540635,90219.0,90218.0,0.00016619]
[1765702015362,0.10940635,90219.0,90218.0,0.00016619]
[1765702015767,0.10949346,90219.0,90218.0,0.00016619]
[1765702016365,0.11449346,90219.0,90218.0,0.00116619]
[1765702017357,0.17419855,90219.0,90218.0,0.00116619]
[1765702018461,0.89579855,90219.0,90218.0,0.00116619]
[1765702021871,0.83609346,90219.0,90218.0,0.00116619]
[1765702023472,0.11449346,90219.0,90218.0,0.00116619]
[1765702023772,0.83609346,90219.0,90218.0,0.00116619]
[1765702031481,0.11449346,90219.0,90218.0,0.00116619]
[1765702031781,0.83609346,90219.0,90218.0,0.00116619]
[1765702034084,0.11449346,90219.0,90218.0,0.00116619]
[1765702034279,0.83609346,90219.0,90218.0,0.00116619]
[1765702037278,0.89577189,90219.0,90218.0,0.00116619]
[1765702037584,0.17417189,90219.0,90218.0,0.00116619]
[1765702037891,0.89577189,90219.0,90218.0,0.00116619]
[1765702040289,0.83609346,90219.0,90218.0,0.00116619]
[1765702043496,0.83609346,90219.0,90218.0,0.03449619]
[1765702043898,0.83609346,90219.0,90218.0,0.00116619]
[1765702046496,1.52793346,90219.0,90218.0,0.00116619]
[1765702049709,0.80633346,90219.0,90218.0,0.00116619]
[1765702049909,1.52793346,90219.0,90218.0,0.00116619]
[1765702059017,0.80633346,90219.0,90218.0,0.00116619]
[1765702059316,1.52793346,90219.0,90218.0,0.00116619]
[1765702062119,1.60751133,90219.0,90218.0,0.00116619]
[1765702063421,0.88591133,90219.0,90218.0,0.00116619]
[1765702063721,1.60751133,90219.0,90218.0,0.00116619]
[1765702066113,1.52793346,90219.0,90218.0,0.00116619]
[1765702071928,1.60756381,90219.0,90218.0,0.00116619]
[1765702075733,0.88596381,90219.0,90218.0,0.00116619]
[1765702075927,1.60756381,90219.0,90218.0,0.00116619]
[1765702077427,1.62710381,90219.0,90218.0,0.00116619]
[1765702078023,0.90550381,90219.0,90218.0,0.00116619]
[1765702078217,1.62710381,90219.0,90218.0,0.00116619]
[1765702078634,1.54747346,90219.0,90218.0,0.00116619]
[1765702081531,1.62709562,90219.0,90218.0,0.00116619]
[1765702084336,0.90549562,90219.0,90218.0,0.00116619]
[1765702084545,1.62709562,90219.0,90218.0,0.00116619]
[1765702087747,0.90549562,90219.0,90218.0,0.00116619]
[1765702087938,1.62709562,90219.0,90218.0,0.00116619]
[1765702089543,0.90549562,90219.0,90218.0,0.00116619]
[1765702089747,1.62709562,90219.0,90218.0,0.00116619]
[1765702092043,0.90549562,90219.0,90218.0,0.00116619]
[1765702092244,1.62709562,90219.0,90218.0,0.00116619]
[1765702094347,0.90549562,90219.0,90218.0,0.00116619]
[1765702094646,1.62709562,90219.0,90218.0,0.00116619]
[1765702095446,0.90549562,90219.0,90218.0,0.00116619]
[1765702095641,1.62709562,90219.0,90218.0,0.00116619]
[1765702097546,0.90549562,90219.0,90218.0,0.00116619]
[1765702097750,1.62709562,90219.0,90218.0,0.00116619]
[1765702099753,0.90549562,90219.0,90218.0,0.00116619]
[1765702099943,1.62709562,90219.0,90218.0,0.00116619]
[1765702100551,1.54747346,90219.0,90218.0,0.00116619]
[1765702103350,1.62713959,90219.0,90218.0,0.00116619]
[1765702105447,1.6703459,90219.0,90218.0,0.00116619]
[1765702106556,1.67006297,90219.0,90218.0,0.00116619]
[1765702106756,0.94846297,90219.0,90218.0,0.00116619]
[1765702106956,1.67006297,90219.0,90218.0,0.00116619]
[1765702112062,1.59039684,90219.0,90218.0,0.00116619]
[1765702115060,0.86879684,90219.0,90218.0,0.00116619]
[1765702115264,1.59039684,90219.0,90218.0,0.00116619]
[1765702121962,1.67024571,90219.0,90218.0,0.00116619]
[1765702122667,1.62685693,90219.0,90218.0,0.00116619]
[1765702123067,1.62696641,90219.0,90218.0,0.00116619]
[1765702123268,1.67035519,90219.0,90218.0,0.00116619]
[1765702123666,1.62696641,90219.0,90218.0,0.00116619]
[1765702124870,1.67066359,90219.0,90218.0,0.00116619]
[1765702125756,0.95006019,90219.0,90218.0,0.00116619]
[1765702125958,1.67166019,90219.0,90218.0,0.00116619]
[1765702126163,1.62696641,90219.0,90218.0,0.00116619]
[1765702126363,1.6713342,90219.0,90218.0,0.00116619]
[1765702127869,1.67162552,90219.0,90218.0,0.00116619]
[1765702128871,1.67116556,90219.0,90218.0,0.00116619]
[1765702129564,1.59149916,90219.0,90218.0,0.00116619]
[1765702130870,1.54730001,90219.0,90218.0,0.00116619]
[1765702131074,1.59133146,90219.0,90218.0,0.00116619]
[1765702134377,0.86973146,90219.0,90218.0,0.00116619]
[1765702134576,1.59133146,90219.0,90218.0,0.00116619]
[1765702135473,0.86973146,90219.0,90218.0,0.00116619]
[1765702135676,1.59133146,90219.0,90218.0,0.00116619]
[1765702136671,0.86973146,90219.0,90218.0,0.00116619]
[1765702136878,1.59133146,90219.0,90218.0,0.00116619]
[1765702137378,0.86973146,90219.0,90218.0,0.00116619]
[1765702137568,1.59133146,90219.0,90218.0,0.00116619]
[1765702139478,0.86973146,90219.0,90218.0,0.00116619]
[1765702139978,1.59133146,90219.0,90218.0,0.00116619]
[1765702143481,1.59133146,90219.0,90218.0,0.06989619]
[1765702144580,0.86973146,90219.0,90218.0,0.06989619]
[1765702144781,1.59133146,90219.0,90218.0,0.06989619]
[1765702146386,1.59133146,90219.0,90218.0,0.03561619]
[1765702147681,0.86973146,90219.0,90218.0,0.03561619]
[1765702147885,1.59133146,90219.0,90218.0,0.03561619]
[1765702150387,1.67100965,90219.0,90218.0,0.03561619]
[1765702151988,1.59133146,90219.0,90218.0,0.03561619]
[1765702154186,1.59133146,90219.0,90218.0,0.00116619]
[1765702159492,0.86973146,90219.0,90218.0,0.00116619]
[1765702159792,1.59133146,90219.0,90218.0,0.00116619]
[1765702161999,1.67099892,90219.0,90218.0,0.00116619]
[1765702163495,0.94939892,90219.0,90218.0,0.00116619]
[1765702163688,1.67099892,90219.0,90218.0,0.00116619]
[1765702165685,0.94939892,90219.0,90218.0,0.00116619]
[1765702165890,1.67099892,90219.0,90218.0,0.00116619]
[1765702167898,1.67111863,90219.0,90218.0,0.00116619]
[1765702174603,0.94951863,90219.0,90218.0,0.00116619]
[1765702174804,1.67111863,90219.0,90218.0,0.00116619]
[1765702175610,0.94951863,90219.0,90218.0,0.00116619]
[1765702175816,1.67111863,90219.0,90218.0,0.00116619]
[1765702181509,0.94951863,90219.0,90218.0,0.00116619]
[1765702181709,1.67111863,90219.0,90218.0,0.00116619]
[1765702182206,1.59145117,90219.0,90218.0,0.00116619]
[1765702183414,0.86985117,90219.0,90218.0,0.00116619]
[1765702183709,1.59145117,90219.0,90218.0,0.00116619]
[1765702184413,0.86985117,90219.0,90218.0,0.00116619]
[1765702184712,1.59145117,90219.0,90218.0,0.00116619]
[1765702185407,0.86985117,90219.0,90218.0,0.00116619]
[1765702185811,1.59145117,90219.0,90218.0,0.00116619]
[1765702187507,0.86985117,90219.0,90218.0,0.00116619]
[1765702187715,1.59145117,90219.0,90218.0,0.00116619]
[1765702188415,0.86985117,90219.0,90218.0,0.00116619]
[1765702188618,1.59145117,90219.0,90218.0,0.00116619]
[1765702191718,0.86985117,90219.0,90218.0,0.00116619]
[1765702191901,1.59145117,90219.0,90218.0,0.00116619]
[1765702196017,0.86985117,90219.0,90218.0,0.00116619]
[1765702196216,1.59145117,90219.0,90218.0,0.00116619]
[1765702202025,1.59145117,90219.0,90199.0,1.5]
[1765702202026,0.0962949,90206.0,90205.0,0.06795]
[1765702202226,1.17322261,90206.0,90205.0,0.06795]
[1765702203228,1.17722261,90206.0,90205.0,0.06895]
[1765702204026,1.17922261,90206.0,90205.0,0.06895]
[1765702205025,1.15007771,90206.0,90205.0,0.06895]
[1765702206927,1.08840351,90206.0,90205.0,0.06895]
[1765702207124,0.72760351,90206.0,90205.0,0.06895]
[1765702210442,0.72212771,90206.0,90205.0,0.06895]
[1765702211537,0.72212771,90206.0,90205.0,0.42975]
[1765702213529,0.6979183,90206.0,90205.0,0.42975]
[1765702213733,0.6979183,90206.0,90205.0,1.92975]
[1765702220245,0.0060783,90206.0,90205.0,1.92975]
[1765702223638,0.00016629,90215.0,90214.0,0.08743]
[1765702223831,0.00016629,90215.0,90214.0,0.44823]
[1765702225142,0.00516629,90215.0,90214.0,0.44923]
[1765702225339,0.00516629,90215.0,90214.0,0.4603138]
[1765702225749,0.00816629,90215.0,90214.0,0.4603138]
[1765702229044,0.00816629,90215.0,90214.0,1.9603138]
[1765702235448,0.00816629,90215.0,90214.0,1.5995138]
[1765702235748,0.00816629,90215.0,90214.0,1.9603138]
[1765702237647,0.03234074,90215.0,90214.0,1.9603138]
[1765702240050,0.03234074,90215.0,90214.0,1.5995138]
[1765702240348,0.03234074,90215.0,90214.0,1.9603138]
[1765702243752,0.03234074,90215.0,90214.0,1.5995138]
[1765702243946,0.03234074,90215.0,90214.0,1.9603138]
[1765702244446,0.03236669,90215.0,90214.0,1.9603138]
[1765702248048,0.09720669,90215.0,90214.0,1.9408338]
[1765702248967,0.09720669,90215.0,90214.0,1.92975]
[1765702255465,0.09720669,90215.0,90214.0,1.56895]
[1765702261865,0.09720669,90215.0,90214.0,0.06895]
[1765702262268,0.09720669,90215.0,90214.0,1.56895]
[1765702262666,0.03296,90230.0,90229.0,0.06356]
[1765702262868,0.011082,90229.0,90228.0,0.07297]
[1765702263063,0.03296,90229.0,90228.0,0.07297]
[1765702263264,0.06588,90229.0,90228.0,0.06356]
[1765702265464,0.06688,90229.0,90228.0,0.06856]
[1765702266367,0.06688,90229.0,90228.0,0.06956]
[1765702267075,0.06688,90229.0,90228.0,0.06656]
[1765702267370,0.06688,90229.0,90228.0,0.07056]
[1765702267965,0.06588,90229.0,90228.0,0.004]
[1765702268169,0.06588,90220.0,90219.0,0.00016629]
[1765702268374,0.0769631,90220.0,90219.0,0.00016629]
[1765702269183,0.0799631,90220.0,90219.0,0.00016629]
[1765702269474,0.0819631,90220.0,90219.0,0.00016629]
[1765702269981,0.0829631,90220.0,90219.0,0.00016629]
[1765702274776,0.10743842,90220.0,90219.0,0.00016629]
[1765702276768,0.46823842,90220.0,90219.0,0.00016629]
[1765702277473,0.10743842,90220.0,90219.0,0.00016629]
[1765702277674,0.46823842,90220.0,90219.0,0.00016629]
[1765702278577,0.10743842,90220.0,90219.0,0.00016629]
[1765702278780,0.46823842,90220.0,90219.0,0.00016629]
[1765702281182,1.16011842,90220.0,90219.0,0.00016629]
[1765702281673,0.79931842,90220.0,90219.0,0.00016629]
[1765702281976,1.16011842,90220.0,90219.0,0.00016629]
[1765702282480,1.17947842,90220.0,90219.0,0.00016629]
[1765702289086,0.81867842,90220.0,90219.0,0.00016629]
[1765702289389,1.17947842,90220.0,90219.0,0.00016629]
[1765702293781,0.81867842,90220.0,90219.0,0.00016629]
[1765702293990,1.17947842,90220.0,90219.0,0.00016629]
[1765702294190,1.23922649,90220.0,90219.0,0.00016629]
[1765702296095,1.17947842,90220.0,90219.0,0.00016629]
[1765702301495,0.81867842,90220.0,90219.0,0.00016629]
[1765702301692,1.17947842,90220.0,90219.0,0.00016629]
[1765702303402,0.81867842,90220.0,90219.0,0.00016629]
[1765702303700,1.17947842,90220.0,90219.0,0.00016629]
[1765702312405,0.81867842,90220.0,90219.0,0.00016629]
[1765702312708,1.17947842,90220.0,90219.0,0.00016629]
[1765702313394,0.81867842,90220.0,90219.0,0.00016629]
[1765702313593,1.17947842,90220.0,90219.0,0.00016629]
[1765702313793,0.81867842,90220.0,90219.0,0.00016629]
[1765702314005,1.17947842,90220.0,90219.0,0.00016629]
[1765702318204,1.23921452,90220.0,90219.0,0.00016629]
[1765702320109,0.87841452,90220.0,90219.0,0.00016629]
[1765702320408,1.23921452,90220.0,90219.0,0.00016629]
[1765702323404,0.87841452,90220.0,90219.0,0.00016629]
[1765702323604,1.23921452,90220.0,90219.0,0.00016629]
[1765702324109,0.87841452,90220.0,90219.0,0.00016629]
[1765702324310,1.23921452,90220.0,90219.0,0.00016629]
[1765702328613,0.87841452,90220.0,90219.0,0.00016629]
[1765702328813,1.23921452,90220.0,90219.0,0.00016629]
[1765702330112,0.87841452,90220.0,90219.0,0.00016629]
[1765702330312,1.23921452,90220.0,90219.0,0.00016629]
[1765702330514,0.87841452,90220.0,90219.0,0.00016629]
[1765702330713,1.23921452,90220.0,90219.0,0.00016629]
[1765702332021,1.17947842,90220.0,90219.0,0.00016629]
[1765702333420,0.81867842,90220.0,90219.0,0.00016629]
[1765702333624,1.17947842,90220.0,90219.0,0.00016629]
[1765702336523,0.81867842,90220.0,90219.0,0.00016629]
[1765702336722,1.17947842,90220.0,90219.0,0.00016629]
[1765702338123,1.25915041,90220.0,90219.0,0.00016629]
[1765702338624,0.89835041,90220.0,90219.0,0.00016629]
[1765702338924,1.25915041,90220.0,90219.0,0.00016629]
[1765702342032,1.17947842,90220.0,90219.0,0.00016629]
[1765702351638,1.17947842,90220.0,90219.0,0.03112629]
[1765702352239,1.17947842,90220.0,90219.0,0.06080629]
[1765702354043,0.81867842,90220.0,90219.0,0.06080629]
[1765702354242,1.17947842,90220.0,90219.0,0.06080629]
[1765702356635,1.17947842,90220.0,90219.0,0.03112629]
[1765702357636,0.81867842,90220.0,90219.0,0.03112629]
[1765702357838,1.17947842,90220.0,90219.0,0.03112629]
[1765702361649,0.81867842,90220.0,90219.0,0.03112629]
[1765702361946,1.17947842,90220.0,90219.0,0.03112629]
[1765702364748,0.81867842,90220.0,90219.0,0.03112629]
[1765702365347,1.17947842,90220.0,90219.0,0.03112629]
[1765702376852,1.17947842,90220.0,90219.0,0.02782629]
[1765702380348,0.81867842,90220.0,90219.0,0.02782629]
[1765702380554,1.17947842,90220.0,90219.0,0.02782629]
[1765702382159,1.25915041,90220.0,90219.0,0.02782629]
[1765702383761,1.25931717,90220.0,90219.0,0.02782629]
[1765702384662,1.25931717,90220.0,90219.0,0.05690629]
[1765702385061,1.25931717,90220.0,90219.0,0.02782629]
[1765702389960,1.25931717,90220.0,90219.0,0.00016629]
[1765702392068,1.17964518,90220.0,90219.0,0.00016629]
[1765702400371,0.81884518,90220.0,90219.0,0.00016629]
[1765702400761,1.17964518,90220.0,90219.0,0.00016629]
[1765702405071,0.81884518,90220.0,90219.0,0.00016629]
[1765702405276,1.17964518,90220.0,90219.0,0.00016629]
[1765702416088,1.54044518,90220.0,90219.0,0.00016629]
[1765702418483,0.81884518,90220.0,90219.0,0.00016629]
[1765702418691,1.54044518,90220.0,90219.0,0.00016629]
[1765702419784,0.81884518,90220.0,90219.0,0.00016629]
[1765702419987,1.54044518,90220.0,90219.0,0.00016629]
[1765702422783,1.17964518,90220.0,90219.0,0.00016629]
[1765702422983,1.54044518,90220.0,90219.0,0.00016629]
[1765702425889,0.05969,90201.0,90200.0,0.16509385]
[1765702426093,0.77613208,90201.0,90200.0,0.05689]
[1765702426291,0.77613208,90201.0,90200.0,1.55689]
[1765702426990,0.77713208,90201.0,90200.0,1.55689]
[1765702427391,0.77813208,90201.0,90200.0,1.55689]
[1765702430697,0.78360431,90201.0,90200.0,1.55689]
[1765702435307,0.78333516,90201.0,90200.0,1.55689]
[1765702462035,0.72364516,90201.0,90200.0,1.57318]
[1765702462942,0.71817293,90201.0,90200.0,1.57318]
[1765702467341,0.71817293,90201.0,90200.0,1.93398]
[1765702467941,0.77356293,90201.0,90200.0,1.93398]
[1765702468248,0.77356293,90201.0,90200.0,1.91769]
[1765702471432,0.71817293,90201.0,90200.0,1.91769]
[1765702477836,0.74596293,90201.0,90200.0,1.91769]
[1765702482044,0.74596293,90201.0,90200.0,1.55689]
[1765702482250,0.74596293,90201.0,90200.0,1.91769]
[1765702483043,0.74596293,90201.0,90200.0,1.55689]
[1765702483242,0.74596293,90201.0,90200.0,1.91769]
[1765702486249,0.71817293,90201.0,90200.0,1.91769]
[1765702487353,0.71817293,90201.0,90200.0,1.55689]
[1765702487753,0.71817293,90201.0,90200.0,1.91769]
[1765702488252,0.74596293,90201.0,90200.0,1.91769]
[1765702490056,0.77356293,90201.0,90200.0,1.91769]
[1765702499561,0.77356293,90201.0,90200.0,1.55689]
[1765702499763,0.77356293,90201.0,90200.0,1.91769]
[1765702500364,0.77356293,90201.0,90200.0,1.55689]
[1765702500564,0.77356293,90201.0,90200.0,1.91769]
[1765702505965,0.77356293,90201.0,90200.0,1.97758168]
[1765702511067,0.77356293,90201.0,90200.0,1.61678168]
[1765702511266,0.77356293,90201.0,90200.0,1.97758168]
[1765702513258,0.77356293,90201.0,90200.0,1.91769]
[1765702514662,0.77356293,90201.0,90200.0,1.55689]
[1765702541907,0.77353419,90201.0,90200.0,1.55689]
[1765702561228,0.79112419,90201.0,90200.0,1.55689]
[1765702592063,1.15192419,90201.0,90200.0,1.55689]
[1765702596459,0.79112419,90201.0,90200.0,1.55689]
[1765702596665,1.15192419,90201.0,90200.0,1.55689]
[1765702597068,0.79112419,90201.0,90200.0,1.55689]
[1765702597665,1.15192419,90201.0,90200.0,1.55689]
[1765702600068,1.15192419,90201.0,90200.0,0.05689]
[1765702600465,1.15192419,90201.0,90198.0,0.00013171]
[1765702600466,0.05444,90199.0,90198.0,0.00013171]
[1765702600672,0.0810065,90192.0,90191.0,0.0001112]
[1765702600861,0.0810065,90192.0,90175.0,0.3608]
[1765702600862,0.05444,90176.0,90175.0,0.0587]
[1765702601571,0.05455935,90176.0,90175.0,0.0587]
[1765702602468,0.00011935,90176.0,90175.0,0.0587]
[1765702603356,0.00011935,90176.0,90175.0,0.0597]
[1765702611974,0.01120785,90176.0,90175.0,0.0597]
[1765702615385,0.01120785,90176.0,90175.0,0.4205]
[1765702615882,0.03827785,90176.0,90175.0,0.4205]
[1765702617078,0.01120785,90176.0,90175.0,0.4205]
[1765702626682,0.01120785,90176.0,90175.0,0.0597]
[1765702629389,0.0369402,90176.0,90175.0,0.0597]
[1765702633489,0.0258517,90176.0,90175.0,0.0597]
[1765702636089,0.0531917,90176.0,90175.0,0.0597]
[1765702638584,0.0806617,90176.0,90175.0,0.0597]
[1765702650995,0.0959717,90176.0,90175.0,0.001]
[1765702651204,0.0959717,90176.0,90162.0,0.079415]
[1765702651205,0.01645,90164.0,90162.0,0.39021]
[1765702651406,0.01645,90164.0,90162.0,0.05751]
[1765702651407,0.09273245,90163.0,90162.0,0.05751]
[1765702652196,0.08164235,90163.0,90162.0,0.05751]
[1765702652597,0.08164235,90163.0,90162.0,0.05851]
[1765702652598,0.08464235,90163.0,90162.0,0.05851]
[1765702654201,0.08764235,90163.0,90162.0,0.05851]
[1765702654404,0.03173235,90163.0,90162.0,0.07463]
[1765702654701,0.08764235,90163.0,90162.0,0.05851]
[1765702662304,0.06191,90163.0,90162.0,0.05851]
[1765702667405,0.006,90163.0,90162.0,0.07458]
[1765702675012,0.06191,90163.0,90162.0,0.03041]
[1765702675217,0.06191,90163.0,90162.0,0.05851]
[1765702678326,0.08771598,90163.0,90162.0,0.05851]
[1765702706042,0.08771598,90163.0,90162.0,0.41931]
[1765702712040,0.08771598,90163.0,90162.0,1.91931]
[1765702716847,0.05961598,90163.0,90162.0,1.91931]
[1765702717450,0.08685598,90163.0,90162.0,1.91931]
[1765702723650,0.08685598,90163.0,90162.0,1.55851]
[1765702723847,0.08685598,90163.0,90162.0,1.91931]
[1765702725754,0.05961598,90163.0,90162.0,1.91931]
[1765702725956,0.08685598,90163.0,90162.0,1.91931]
[1765702730663,0.08685598,90163.0,90162.0,1.55851]
[1765702730852,0.08685598,90163.0,90162.0,1.91931]
[1765702731255,0.05961598,90163.0,90162.0,1.91931]
[1765702734466,0.08685598,90163.0,90162.0,1.91931]
[1765702742266,0.03180598,90163.0,90162.0,1.93543]
[1765702742872,0.06081598,90163.0,90162.0,1.93543]
[1765702746564,0.06081598,90163.0,90162.0,1.57463]
[1765702746774,0.06081598,90163.0,90162.0,1.93543]
[1765702752676,0.06081598,90163.0,90162.0,1.57463]
[1765702752876,0.06081598,90163.0,90162.0,1.93543]
[1765702753780,0.03501,90163.0,90162.0,1.93543]
[1765702753978,0.03176163,90163.0,90162.0,1.93543]
[1765702754367,0.06077163,90163.0,90162.0,1.93543]
[1765702757079,0.03176163,90163.0,90162.0,1.57463]
[1765702757379,0.03176163,90163.0,90162.0,1.93543]
[1765702777891,0.06078163,90163.0,90162.0,1.93543]
[1765702781895,0.08787163,90163.0,90162.0,1.93543]
[1765702782898,0.06078163,90163.0,90162.0,1.93543]
[1765702783604,0.03176163,90163.0,90162.0,1.93543]
[1765702795118,0.03176163,90163.0,90162.0,1.57463]
[1765702795308,0.03176163,90163.0,90162.0,1.93543]
[1765702805921,0.00823223,90163.0,90162.0,1.93543]
[1765702812622,0.00011935,90176.0,90175.0,0.05658]
[1765702812940,0.02922629,90185.0,90184.0,0.07267]
[1765702813226,0.05634629,90185.0,90184.0,0.43347]
[1765702814619,0.05634629,90185.0,90184.0,0.43647]
[1765702815121,0.05834629,90185.0,90184.0,0.43447]
[1765702816619,0.06034629,90185.0,90184.0,0.43347]
[1765702817917,0.05834629,90185.0,90184.0,0.43347]
[1765702818120,0.06034629,90185.0,90184.0,0.43347]
[1765702820129,0.00416629,90185.0,90184.0,0.43347]
[1765702821224,0.03322629,90185.0,90184.0,0.43347]
[1765702822131,0.00416629,90185.0,90184.0,0.43347]
[1765702822731,0.00316629,90185.0,90184.0,0.43347]
[1765702823032,0.00116629,90185.0,90184.0,0.43347]
[1765702823330,0.00216629,90185.0,90184.0,0.43347]
[1765702823723,0.00116629,90185.0,90184.0,0.43347]
[1765702823921,0.00216629,90185.0,90184.0,0.43347]
[1765702824825,0.02773025,90185.0,90184.0,0.43347]
[1765702827637,0.02773025,90185.0,90184.0,0.48571205]
[1765702827939,0.02773025,90185.0,90184.0,0.43347]
[1765702828439,0.05498025,90185.0,90184.0,0.43347]
[1765702828731,0.05398025,90185.0,90184.0,0.43347]
[1765702828934,0.05498025,90185.0,90184.0,0.43347]
[1765702829527,0.02673025,90185.0,90184.0,0.43347]
[1765702829833,0.08373025,90185.0,90184.0,0.43347]
[1765702831937,0.08273025,90185.0,90184.0,0.43347]
[1765702832522,0.05716629,90185.0,90184.0,0.43347]
[1765702832732,0.02741629,90185.0,90184.0,0.43347]
[1765702833630,0.00016629,90185.0,90184.0,0.43347]
[1765702837339,0.3608,90215.0,90204.0,0.0576]
[1765702837641,0.057,90213.0,90212.0,0.0576]
[1765702837827,0.08287122,90213.0,90212.0,0.4184]
[1765702838328,0.09967122,90213.0,90212.0,0.4184]
[1765702838525,0.09967122,90213.0,90203.0,0.1082656]
[1765702838526,0.07314,90204.0,90203.0,0.05776629]
[1765702838730,0.1098328,90204.0,90203.0,0.00016629]
[1765702839938,0.1098328,90204.0,90203.0,0.02913629]
[1765702840128,0.1098328,90204.0,90203.0,0.03013629]
[1765702841039,0.1098328,90204.0,90203.0,0.05876629]
[1765702841338,0.0528578,90204.0,90203.0,0.43065149]
[1765702841533,0.0826078,90204.0,90203.0,0.43065149]
[1765702846439,0.0826078,90204.0,90203.0,0.06985149]
[1765702857148,0.0256078,90204.0,90203.0,0.06985149]
[1765702857544,0.0541478,90204.0,90203.0,0.06985149]
[1765702857952,0.0813678,90204.0,90203.0,0.06985149]
[1765702862463,0.0541478,90204.0,90203.0,0.06985149]
[1765702864543,0.0813678,90204.0,90203.0,0.06985149]
[1765702872356,0.0813678,90204.0,90203.0,0.05876629]
[1765702872357,0.1086428,90204.0,90203.0,0.05876629]
[1765702874765,0.0975578,90204.0,90203.0,0.05876629]
[1765702881760,0.0975578,90204.0,90203.0,0.03013629]
[1765702882368,0.0975578,90204.0,90203.0,0.05921629]
[1765702901384,0.0975578,90204.0,90203.0,0.00116629]
[1765702901774,0.05601,90191.0,90190.0,0.64503435]
[1765702902085,0.0927044,90191.0,90190.0,0.53683]
[1765702903288,0.0937044,90191.0,90190.0,0.53683]
[1765702903685,0.0947044,90191.0,90190.0,0.53683]
[1765702904389,0.0937044,90191.0,90190.0,0.53683]
[1765702904590,0.0947044,90191.0,90190.0,0.53683]
[1765702907087,0.0947044,90191.0,90190.0,0.41793]
[1765702907985,0.0690966,90191.0,90190.0,0.41793]
[1765702910793,0.0690966,90191.0,90190.0,0.05713]
[1765702912596,0.09356883,90191.0,90190.0,0.05713]
[1765702912805,0.09456883,90191.0,90190.0,0.05713]
[1765702913702,0.09456883,90191.0,90190.0,0.41793]
[1765702916905,0.08348223,90191.0,90190.0,0.41793]
[1765702918807,0.08248223,90191.0,90190.0,0.41793]
[1765702919113,0.08348223,90191.0,90190.0,0.41793]
[1765702919411,0.08148223,90191.0,90190.0,0.41793]
[1765702919612,0.08348223,90191.0,90190.0,0.41793]
[1765702921415,0.08248223,90191.0,90190.0,0.41793]
[1765702921617,0.08348223,90191.0,90190.0,0.41793]
[1765702922616,0.05801,90191.0,90190.0,0.41793]
[1765702926323,0.08341817,90191.0,90190.0,0.41793]
[1765702928109,0.08341817,90191.0,90190.0,0.05713]
[1765702928314,0.08341817,90191.0,90190.0,0.41793]
[1765702935012,0.02740817,90191.0,90190.0,0.41793]
[1765702935215,0.02740817,90191.0,90190.0,0.43403]
[1765702937825,0.05657817,90191.0,90190.0,0.43403]
[1765702941223,0.02740817,90191.0,90190.0,0.43403]
[1765702942933,0.05657817,90191.0,90190.0,0.43403]
[1765702944732,0.02740817,90191.0,90190.0,0.43403]
[1765702949240,0.05653817,90191.0,90190.0,0.43403]
[1765702951044,0.08614817,90191.0,90190.0,0.43403]
[1765702951639,0.08614817,90191.0,90190.0,0.07323]
[1765702951854,0.08614817,90191.0,90190.0,0.43403]
[1765702952040,0.08614817,90191.0,90190.0,0.07323]
[1765702952241,0.08614817,90191.0,90190.0,0.43403]
[1765702954639,0.08614817,90191.0,90190.0,0.05713]
[1765702954838,0.08614817,90191.0,90190.0,0.41793]
[1765702955545,0.08614817,90191.0,90190.0,0.05713]
[1765702955746,0.08614817,90191.0,90190.0,0.41793]
[1765702959360,0.08614817,90191.0,90190.0,0.05713]
[1765702959648,0.08614817,90191.0,90190.0,0.41793]
[1765702961250,0.02740817,90191.0,90190.0,0.41793]
[1765702961451,0.02740817,90191.0,90190.0,0.43402]